bitfinex/quotes_SOLUSD_20250922
["timestamp","ask_amount","ask_price","bid_price","bid_amount"]
[1758537881582,2.15413141,220.8,220.78,49.49559401]
[1758537882096,2.15413141,220.8,220.78,130.09559401]
[1758537883373,1e-08,220.81,220.78,130.09559401]
[1758537883775,1e-08,220.81,220.78,134.62483629]
[1758537885096,1e-08,220.81,220.78,145.94832573]
[1758537885503,1e-08,220.81,220.79,3.35474635]
[1758537885681,1e-08,220.81,220.8,35.88]
[1758537886796,1e-08,220.81,220.8,40.4089855]
[1758537888085,1e-08,220.81,220.8,121.0089855]
[1758537889596,1e-08,220.81,220.8,124.36527263]
[1758537889900,1e-08,220.81,220.8,138.63086664]
[1758537891002,0.68000001,220.81,220.8,97.55188114]
[1758537891297,2.83413142,220.81,220.8,137.94086664]
[1758537891480,0.68000001,220.81,220.8,137.94086664]
[1758537891801,1e-08,220.81,220.8,137.94086664]
[1758537894677,1e-08,220.81,220.8,137.94646612]
[1758537899196,0.72000001,220.81,220.8,133.41748062]
[1758537899402,0.72000001,220.81,220.8,133.42791691]
[1758537902185,0.72000001,220.81,220.8,83.9723229]
[1758537902386,0.72000001,220.81,220.8,119.8123229]
[1758537905812,0.72000001,220.81,220.8,39.2123229]
[1758537906402,6.62528485,220.81,220.8,39.2123229]
[1758537906787,2.09650446,220.81,220.8,39.2123229]
[1758537907698,2.09650446,220.81,220.8,39.22913734]
[1758537907898,0.72000001,220.81,220.8,39.22913734]
[1758537909305,1e-08,220.81,220.8,58.01371685]
[1758537910006,1e-08,220.81,220.8,138.61371685]
[1758537910210,1e-08,220.82,220.81,13.59559401]
[1758537910387,1e-08,220.84,220.83,39.59559401]
[1758537910592,1e-08,220.84,220.83,78.80473135]
[1758537910795,1e-08,220.84,220.83,83.99310158]
[1758537912792,1e-08,220.84,220.83,83.97310158]
[1758537913098,1e-08,220.84,220.83,80.58396424]
[1758537914815,4.52591124,220.95,220.83,80.58396424]
[1758537914816,0.2,220.96,220.84,13.59559401]
[1758537915012,0.2,220.96,220.89,39.59559401]
[1758537915193,0.2,220.96,220.94,39.59559401]
[1758537915399,0.2,221.01,220.96,13.59559401]
[1758537915728,0.2,221.01,220.98,13.59559401]
[1758537915912,0.2,221.01,220.95,7.0181001]
[1758537915913,0.2,221.01,221.0,13.59559401]
[1758537916306,0.2,221.01,221.0,14.30559401]
[1758537916894,0.2,221.01,221.0,18.83048088]
[1758537918605,0.2,221.01,221.0,54.61048088]
[1758537922102,0.2,221.01,221.0,54.61048088]
[1758537922718,0.2,221.01,221.0,135.21048088]
[1758537926014,0.2,221.01,221.0,137.0241697]
[1758537927911,0.2,221.01,221.0,271.4241697]
[1758537929422,0.2,221.01,221.0,137.0241697]
[1758537931446,0.9,221.01,221.0,15.40928283]
[1758537931608,0.9,221.01,221.0,49.35559401]
[1758537932824,0.9,221.01,221.0,13.59559401]
[1758537932825,2.27650445,221.01,221.0,13.59559401]
[1758537933136,2.27650445,221.01,221.0,49.35559401]
[1758537934733,2.27650445,221.01,221.0,129.95559401]
[1758537935110,0.2,221.01,221.0,134.48048088]
[1758537935316,0.2,221.04,221.01,13.59559401]
[1758537935510,0.2,221.04,221.03,18.11986673]
[1758537937815,0.2,221.04,221.03,18.81986673]
[1758537939233,0.2,221.05,221.03,18.81986673]
[1758537939435,1e-08,221.05,221.04,50.35559401]
[1758537940313,1e-08,221.05,221.04,130.95559401]
[1758537940724,1e-08,221.05,221.04,135.47966205]
[1758537941620,1e-08,221.05,221.04,98.71966205]
[1758537941825,0.70000001,221.05,221.04,134.75966205]
[1758537942015,1e-08,221.05,221.04,134.75966205]
[1758537943040,1e-08,221.05,221.04,135.45966205]
[1758537943249,0.18405502,221.1,221.05,8.59559401]
[1758537943547,0.18405502,221.1,221.06,36.02]
[1758537944616,4.52245083,221.12,221.06,36.02]
[1758537944816,5.89873119,221.13,221.06,36.02]
[1758537945018,5.89873119,221.13,221.07,36.02]
[1758537945220,0.7,221.12,221.08,36.0]
[1758537945419,0.7,221.11,221.08,36.0]
[1758537945618,0.7,221.1,221.08,36.0]
[1758537945846,0.7,221.09,221.08,36.0]
[1758537946237,0.2,221.14,221.09,13.59559401]
[1758537946426,0.2,221.14,221.11,13.59559401]
[1758537946745,0.2,221.14,221.13,13.59559401]
[1758537946939,0.2,221.14,221.13,49.95559401]
[1758537947241,0.2,221.14,221.13,50.65559401]
[1758537947551,0.2,221.14,221.13,62.34]
[1758537947843,0.2,221.14,221.13,63.04]
[1758537948218,0.2,221.14,221.13,67.56222674]
[1758537949530,0.2,221.14,221.13,81.15782075]
[1758537950033,0.2,221.14,221.13,44.11782075]
[1758537950226,0.2,221.14,221.13,54.41782075]
[1758537951045,0.2,221.14,221.13,13.59559401]
[1758537951227,0.2,221.14,221.13,49.89559401]
[1758537951423,0.2,221.14,221.13,54.41782075]
[1758537952147,0.2,221.14,221.11,4.52249205]
[1758537952354,0.9,221.14,221.13,13.59559401]
[1758537952557,0.2,221.14,221.13,13.59559401]
[1758537952932,0.2,221.14,221.13,14.29559401]
[1758537953441,5.2,221.14,221.13,14.29559401]
[1758537954841,5.2,221.14,221.13,18.81782075]
[1758537956134,5.2,221.14,221.13,81.05782075]
[1758537959357,5.2,221.14,221.13,55.05782075]
[1758537959543,0.2,221.2,221.17,13.59559401]
[1758537959749,0.2,221.2,221.19,13.59559401]
[1758537961756,0.2,221.2,221.19,18.11659405]
[1758537962266,0.2,221.2,221.19,18.77659405]
[1758537963349,1e-08,221.2,221.19,18.77659405]
[1758537963862,1e-08,221.2,221.19,18.11659405]
[1758537964160,1e-08,221.2,221.19,54.25659405]
[1758537964657,1e-08,221.2,221.19,134.85659405]
[1758537965039,1e-08,221.2,221.19,135.51659405]
[1758537965241,1e-08,221.2,221.19,134.85659405]
[1758537966562,5.00000001,221.2,221.19,134.85659405]
[1758537968254,5.00000001,221.2,221.19,135.51659405]
[1758537968665,5.00000001,221.2,221.19,134.85659405]
[1758537970753,5.69000001,221.2,221.19,130.23559401]
[1758537971666,5.00000001,221.2,221.19,130.23559401]
[1758537972070,5.00000001,221.2,221.19,134.75659405]
[1758537973948,5.00000001,221.2,221.19,135.41659405]
[1758537975573,0.2,221.24,221.22,13.59559401]
[1758537975752,0.2,221.24,221.23,49.59559401]
[1758537975955,0.2,221.24,221.23,50.25559401]
[1758537977249,0.2,221.24,221.23,134.69577661]
[1758537978762,0.2,221.24,221.23,135.35577661]
[1758537979352,0.2,221.24,221.23,134.69577661]
[1758537981982,0.2,221.24,221.23,135.40577661]
[1758537982283,0.2,221.24,221.23,134.69577661]
[1758537982784,0.2,221.24,221.23,130.135594]
[1758537982962,0.89,221.24,221.23,13.59559401]
[1758537983148,3.03266586,221.24,221.23,49.51559401]
[1758537983658,7.55264416,221.24,221.23,35.92]
[1758537983849,7.55264416,221.24,221.19,13.59559401]
[1758537984048,2.14266586,221.21,221.2,35.92]
[1758537984377,2.83266586,221.21,221.2,35.92]
[1758537986772,7.3532616,221.21,221.18,80.59999999]
[1758537986972,0.69,221.2,221.19,35.88]
[1758537988280,5.21040897,221.22,221.19,35.88]
[1758537988472,2.14266586,221.21,221.19,35.88]
[1758537988787,2.83266586,221.21,221.19,35.88]
[1758537989000,0.69,221.21,221.19,116.47999999]
[1758537989177,2.83266586,221.21,221.19,116.47999999]
[1758537989788,2.14266586,221.23,221.19,121.00097295]
[1758537989986,0.2,221.24,221.19,121.00097295]
[1758537990176,0.69,221.23,221.19,121.00097295]
[1758537991681,2.83266586,221.23,221.19,121.00097295]
[1758537992484,2.14266586,221.21,221.19,121.00097295]
[1758537993389,2.14266586,221.22,221.2,0.7]
[1758537993593,2.14266586,221.22,221.21,35.8]
[1758537993898,0.2,221.24,221.21,35.8]
[1758537993899,0.2,221.24,221.22,13.59559401]
[1758537994080,0.2,221.24,221.23,49.39559401]
[1758537994395,0.2,221.24,221.23,50.09559401]
[1758537994585,0.2,221.32,221.24,13.59559401]
[1758537994782,0.2,221.32,221.26,13.59559401]
[1758537994981,0.2,221.32,221.28,13.59559401]
[1758537995288,0.2,221.32,221.29,35.88]
[1758537995471,0.2,221.32,221.3,13.59559401]
[1758537995672,0.2,221.32,221.31,49.47559401]
[1758537995986,0.2,221.32,221.31,54.69414265]
[1758537996576,0.2,221.32,221.31,53.97414265]
[1758537997273,0.2,221.32,221.31,49.45559401]
[1758537998396,0.2,221.32,221.31,53.97414265]
[1758537999077,3.03266586,221.32,221.27,13.59559401]
[1758537999276,2.34266586,221.32,221.29,13.59559401]
[1758537999476,2.34266586,221.32,221.3,35.84]
[1758538000501,2.14266586,221.31,221.3,49.43559401]
[1758538000970,2.83266586,221.31,221.3,49.41559401]
[1758538001175,2.83266586,221.31,221.3,35.82]
[1758538002399,2.83266586,221.31,221.25,13.59559401]
[1758538002597,5.20875282,221.3,221.26,35.82]
[1758538002775,2.14266586,221.27,221.26,49.41559401]
[1758538003496,2.83266586,221.27,221.22,0.7]
[1758538003697,2.14266586,221.24,221.23,49.39559401]
[1758538004002,0.69,221.29,221.24,13.59559401]
[1758538004206,0.69,221.28,221.25,35.8]
[1758538004580,5.2091836,221.28,221.23,13.59559401]
[1758538004782,5.2091836,221.28,221.24,35.78]
[1758538004998,2.14266586,221.26,221.24,35.78]
[1758538005398,2.14266586,221.27,221.24,35.78]
[1758538005696,2.14266586,221.28,221.24,36.48]
[1758538006202,0.2,221.32,221.26,13.59559401]
[1758538006504,0.2,221.32,221.27,35.76]
[1758538006686,0.2,221.32,221.29,13.59559401]
[1758538006888,0.2,221.32,221.3,35.78]
[1758538007088,0.2,221.32,221.31,16.95148321]
[1758538007302,0.2,221.32,221.31,17.65148321]
[1758538008812,0.2,221.32,221.31,22.17003185]
[1758538011990,0.2,221.32,221.31,22.62188671]
[1758538012206,0.2,221.32,221.31,22.17003185]
[1758538013098,1e-08,221.33,221.31,22.62188671]
[1758538013419,1e-08,221.33,221.32,53.47148321]
[1758538014114,1e-08,221.33,221.32,134.0714832]
[1758538014415,1e-08,221.33,221.32,132.85420434]
[1758538014609,1e-08,221.33,221.32,136.19575636]
[1758538015110,0.2,221.35,221.33,13.59559401]
[1758538015111,1e-08,221.35,221.33,13.59559401]
[1758538015312,1e-08,221.35,221.34,54.87575637]
[1758538015514,1e-08,221.35,221.34,136.17575636]
[1758538016222,1e-08,221.35,221.34,134.01714602]
[1758538016438,1e-08,221.35,221.34,16.93714603]
[1758538016610,1e-08,221.35,221.34,52.71714603]
[1758538017421,1e-08,221.35,221.34,57.23508223]
[1758538018422,1e-08,221.35,221.34,59.37369257]
[1758538018717,1e-08,221.35,221.34,60.03369257]
[1758538021922,1e-08,221.35,221.34,140.63369256]
[1758538022226,1e-08,221.35,221.34,138.49508222]
[1758538022522,1e-08,221.35,221.34,140.63369256]
[1758538024037,1e-08,221.35,221.34,140.62916132]
[1758538025013,0.2,221.37,221.35,13.59559401]
[1758538025221,0.2,221.37,221.36,54.85122513]
[1758538025419,1e-08,221.37,221.36,55.51122513]
[1758538026027,1e-08,221.37,221.36,60.02875313]
[1758538026634,1e-08,221.37,221.36,59.25831308]
[1758538030246,0.2,221.42,221.4,13.59559401]
[1758538030417,0.2,221.42,221.41,40.44519107]
[1758538030626,0.2,221.42,221.41,120.84519105]
[1758538031213,0.88,221.42,221.41,83.73702076]
[1758538031424,0.88,221.42,221.41,119.47702076]
[1758538031609,0.88,221.42,221.41,123.99352859]
[1758538031929,0.88,221.42,221.41,2.93702078]
[1758538031930,6.76447414,221.42,221.41,2.93702078]
[1758538032136,6.76447414,221.42,221.41,35.74]
[1758538033129,32.76447414,221.42,221.31,4.51854864]
[1758538033439,32.76447414,221.42,221.32,49.33559401]
[1758538033440,1.36817029,221.36,221.32,49.33559401]
[1758538033618,1.36817029,221.36,221.32,53.85382508]
[1758538033817,0.59,221.35,221.32,53.85382508]
[1758538034409,0.59,221.35,221.32,18.11382508]
[1758538034639,0.59,221.35,221.34,13.59559401]
[1758538035936,1.95817029,221.35,221.34,35.74]
[1758538036835,1.95817029,221.35,221.31,13.59559401]
[1758538037139,26.0,221.37,221.32,35.74]
[1758538037140,1.95817029,221.34,221.32,35.74]
[1758538037353,26.0,221.38,221.34,13.59559401]
[1758538037520,1.95817029,221.4,221.35,35.74]
[1758538037848,1.95817029,221.4,221.36,13.59559401]
[1758538038153,1.95817029,221.4,221.37,35.76]
[1758538038319,1.36817029,221.39,221.37,35.76]
[1758538038520,1.95817029,221.39,221.37,35.76]
[1758538038821,1.36817029,221.38,221.37,35.76]
[1758538039135,27.36817029,221.41,221.37,35.76]
[1758538039338,26.0,221.39,221.37,35.76]
[1758538039545,0.79,221.42,221.38,13.59559401]
[1758538039839,0.2,221.42,221.41,19.48027213]
[1758538040040,0.2,221.42,221.41,55.24027213]
[1758538040229,0.2,221.42,221.41,55.94027213]
[1758538042141,0.2,221.43,221.42,13.59559401]
[1758538042326,0.2,221.49,221.42,15.6637643]
[1758538042528,0.2,221.49,221.44,13.59559401]
[1758538042735,0.2,221.49,221.43,36.46]
[1758538042736,0.2,221.49,221.48,1.36817029]
[1758538042939,0.2,221.49,221.48,37.12817029]
[1758538043130,0.2,221.49,221.48,37.82817029]
[1758538043532,0.2,221.49,221.48,55.93884466]
[1758538044040,0.2,221.49,221.48,59.28799691]
[1758538045951,0.2,221.49,221.48,39.10915225]
[1758538046152,0.79,221.49,221.48,39.10915225]
[1758538046535,0.2,221.49,221.48,39.10915225]
[1758538047442,0.2,221.49,221.48,57.89982662]
[1758538047650,0.2,221.49,221.48,59.26799691]
[1758538047828,0.2,221.49,221.48,57.89982662]
[1758538048035,8.0,221.53,221.49,13.59559401]
[1758538048255,8.0,221.53,221.52,14.9637643]
[1758538048459,8.0,221.53,221.52,53.40474626]
[1758538048760,8.0,221.53,221.52,56.96376411]
[1758538049542,8.0,221.53,221.52,56.94376411]
[1758538050062,8.0,221.53,221.52,61.45802918]
[1758538050261,8.0,221.53,221.52,61.45256141]
[1758538051057,8.0,221.53,221.52,21.45354356]
[1758538051266,8.0,221.53,221.52,57.21354356]
[1758538052436,8.0,221.53,221.52,53.86985908]
[1758538052633,8.0,221.53,221.52,60.77303142]
[1758538052853,8.0,221.53,221.52,25.01303142]
[1758538053057,8.0,221.53,221.52,60.75303142]
[1758538054365,8.0,221.53,221.52,57.19401357]
[1758538054657,8.0,221.53,221.52,61.43303142]
[1758538055947,8.0,221.53,221.52,60.75303142]
[1758538056141,8.0,221.53,221.52,21.45401357]
[1758538056343,8.0,221.53,221.52,57.17401357]
[1758538056665,8.0,221.53,221.52,53.82985908]
[1758538057964,8.0,221.53,221.52,57.17346986]
[1758538058465,8.0,221.53,221.52,53.82985908]
[1758538058673,8.0,221.53,221.52,57.17300369]
[1758538061656,8.0,221.53,221.52,137.77300369]
[1758538062684,8.0,221.53,221.52,142.01202154]
[1758538063372,8.0,221.53,221.52,141.33202154]
[1758538065859,8.0,221.53,221.52,137.77300369]
[1758538066056,8.59,221.53,221.52,16.93873862]
[1758538066362,8.59,221.53,221.52,52.65873862]
[1758538066567,8.59,221.53,221.52,39.06314461]
[1758538066854,8.0,221.53,221.52,43.57740968]
[1758538067466,8.0,221.53,221.52,39.06314461]
[1758538067675,8.59,221.53,221.52,39.06314461]
[1758538068177,8.0,221.53,221.52,43.57740968]
[1758538068358,8.0,221.53,221.52,57.17300369]
[1758538068679,8.0,221.53,221.52,59.21993828]
[1758538068885,8.0,221.53,221.52,58.53993828]
[1758538069871,8.0,221.53,221.52,57.17300369]
[1758538071766,8.0,221.53,221.52,137.77300369]
[1758538072585,8.0,221.53,221.52,97.53873862]
[1758538072886,8.0,221.53,221.52,53.33873862]
[1758538073066,8.0,221.53,221.52,59.21993828]
[1758538075586,8.0,221.53,221.52,139.81993828]
[1758538076175,1e-08,221.55,221.53,13.59559401]
[1758538076463,0.1,221.58,221.55,13.59559401]
[1758538076682,0.1,221.58,221.57,14.9625286]
[1758538076882,0.1,221.58,221.57,54.02567321]
[1758538077058,1e-08,221.58,221.57,54.69567321]
[1758538078082,1e-08,221.58,221.57,59.20891958]
[1758538079271,1e-08,221.58,221.57,165.80891958]
[1758538079663,1e-08,221.58,221.57,130.08891958]
[1758538079865,1e-08,221.58,221.57,165.80891958]
[1758538080098,0.1,221.65,221.57,199.65826741]
[1758538080404,0.1,221.65,221.64,1.36693459]
[1758538080581,0.1,221.65,221.64,40.4300792]
[1758538080893,0.1,221.65,221.64,39.73314461]
[1758538081078,0.1,221.65,221.64,4.7100792]
[1758538081274,0.1,221.65,221.64,39.04314461]
[1758538081587,0.1,221.65,221.64,40.4100792]
[1758538081983,0.1,221.65,221.64,44.92190017]
[1758538083375,0.1,221.65,221.64,125.52190017]
[1758538083761,0.1,221.65,221.64,126.19190017]
[1758538084083,0.1,221.65,221.64,124.15496558]
[1758538084270,0.1,221.65,221.64,85.3100792]
[1758538084472,0.1,221.65,221.64,126.19190017]
[1758538085767,0.59,221.74,221.65,80.59999999]
[1758538085982,0.59,221.74,221.71,1.36693459]
[1758538086185,0.59,221.74,221.72,39.04314461]
[1758538086398,0.59,221.74,221.73,3.34314461]
[1758538086882,0.59,221.74,221.73,3.32370786]
[1758538087086,0.59,221.74,221.73,39.02370786]
[1758538087478,0.69,221.76,221.73,39.02370786]
[1758538087679,0.59,221.75,221.74,3.32370786]
[1758538088468,7.23206653,221.75,221.74,39.02370786]
[1758538088676,7.23206653,221.75,221.74,3.32370786]
[1758538088978,7.23206653,221.75,221.7,35.7]
[1758538089285,2.13248367,221.71,221.7,35.7]
[1758538089491,2.72248367,221.71,221.7,3.32231574]
[1758538090069,7.23288013,221.71,221.7,3.32231574]
[1758538091083,0.59,221.71,221.7,3.32231574]
[1758538091291,2.13248367,221.71,221.7,3.32231574]
[1758538091485,2.13248367,221.72,221.7,3.32231574]
[1758538091686,2.72248367,221.72,221.7,3.32231574]
[1758538092079,7.2327335,221.72,221.71,3.31886288]
[1758538092486,7.2327335,221.72,221.7,3.31886288]
[1758538092678,4.51024983,221.72,221.71,3.31886288]
[1758538092878,17.91821609,221.72,221.61,81.27]
[1758538093086,15.78573242,221.72,221.62,38.99946597]
[1758538093271,0.59,221.71,221.63,3.31946597]
[1758538093587,0.59,221.7,221.64,38.99946597]
[1758538093795,0.59,221.7,221.65,3.31946597]
[1758538093992,2.13248367,221.68,221.66,38.99946597]
[1758538094189,2.72248367,221.68,221.67,3.31946597]
[1758538094369,2.13248367,221.69,221.67,3.31946597]
[1758538094572,2.72248367,221.69,221.68,3.31946597]
[1758538094775,2.72248367,221.71,221.68,3.31946597]
[1758538094979,2.13248367,221.71,221.68,3.31946597]
[1758538095598,6.64288915,221.71,221.68,3.31946597]
[1758538095779,0.59,221.73,221.68,3.31946597]
[1758538096094,2.72248367,221.72,221.68,3.31946597]
[1758538096275,2.72248367,221.71,221.68,3.31946597]
[1758538096811,2.13248367,221.69,221.68,3.31946597]
[1758538096990,2.13248367,221.69,221.67,35.68]
[1758538097176,2.72248367,221.68,221.66,35.68]
[1758538097379,2.72248367,221.67,221.6,26.0]
[1758538097696,2.13248367,221.66,221.61,38.99882968]
[1758538097898,2.13248367,221.64,221.62,3.31882968]
[1758538098094,2.13248367,221.64,221.63,3.31882968]
[1758538099183,2.13248367,221.64,221.63,3.32003927]
[1758538099895,6.64430464,221.64,221.63,3.32003927]
[1758538100073,26.0,221.64,221.63,3.32003927]
[1758538100274,2.13248367,221.64,221.61,35.68]
[1758538100509,2.72248367,221.64,221.62,3.32144695]
[1758538100701,2.72248367,221.63,221.54,13.38791085]
[1758538101010,2.13248367,221.6,221.55,52.59885833]
[1758538101207,2.13248367,221.6,221.56,3.32326432]
[1758538101383,0.59,221.62,221.56,3.32326432]
[1758538101580,2.13248367,221.61,221.56,3.32326432]
[1758538101780,2.13248367,221.63,221.57,3.98326432]
[1758538101983,2.13248367,221.63,221.58,39.00326432]
[1758538102186,2.13248367,221.63,221.59,3.98326432]
[1758538102187,26.0,221.63,221.59,3.98326432]
[1758538102401,26.0,221.63,221.6,3.98326432]
[1758538102582,5.1014082,221.67,221.61,3.32406018]
[1758538102792,2.13248367,221.67,221.62,3.32349239]
[1758538102994,2.13248367,221.67,221.63,0.66]
[1758538103199,28.13248367,221.67,221.63,0.66]
[1758538103682,35.68,221.75,221.63,0.66]
[1758538103683,5.10039204,221.72,221.64,41.79532392]
[1758538103908,2.13248367,221.71,221.65,19.71091793]
[1758538104083,30.51039204,221.72,221.66,3.32284025]
[1758538104286,2.13248367,221.71,221.67,39.0018488]
[1758538104609,2.13248367,221.73,221.68,3.9818488]
[1758538104898,2.13248367,221.73,221.69,3.9818488]
[1758538105084,2.13248367,221.73,221.69,0.66]
[1758538105798,28.13248367,221.73,221.69,0.66]
[1758538106305,28.13248367,221.73,221.7,3.32026544]
[1758538106598,2.13248367,221.73,221.7,3.32026544]
[1758538107192,28.13248367,221.73,221.7,39.00026544]
[1758538107394,28.13248367,221.73,221.7,35.68]
[1758538107803,2.13248367,221.73,221.7,35.68]
[1758538108394,2.13248367,221.73,221.7,36.4]
[1758538109702,2.13248367,221.74,221.7,36.4]
[1758538109905,2.13248367,221.73,221.7,36.4]
[1758538110384,2.13248367,221.73,221.71,3.32107646]
[1758538110579,4.50960864,221.75,221.71,3.32107646]
[1758538110785,0.69,221.76,221.71,3.32107646]
[1758538110994,28.13248367,221.74,221.71,3.32107646]
[1758538111187,2.13248367,221.73,221.71,3.32107646]
[1758538111382,2.72248367,221.72,221.71,3.32107646]
[1758538111588,2.72248367,221.72,221.69,35.68]
[1758538111910,0.59,221.72,221.7,3.32082819]
[1758538112210,4.51023263,221.72,221.7,3.32082819]
[1758538112913,2.13248367,221.71,221.7,3.32082819]
[1758538113406,2.13248367,221.71,221.68,39.00082819]
[1758538113593,26.0,221.73,221.69,3.32082819]
[1758538113790,2.13248367,221.72,221.69,4.04082819]
[1758538113991,2.13248367,221.72,221.7,3.32082819]
[1758538116411,2.13248367,221.72,221.71,3.32082819]
[1758538116610,2.13248367,221.72,221.7,3.32082819]
[1758538116810,0.59,221.72,221.71,3.32082819]
[1758538116996,0.59,221.72,221.7,3.32082819]
[1758538117200,30.51001448,221.73,221.71,3.32082819]
[1758538117403,30.51001448,221.73,221.72,3.33119595]
[1758538117601,30.51001448,221.73,221.7,3.33106158]
[1758538117914,26.0,221.72,221.71,3.33106158]
[1758538118108,26.0,221.72,221.69,35.66]
[1758538118109,2.13248367,221.72,221.7,3.33106158]
[1758538118303,26.0,221.72,221.71,3.33106158]
[1758538118611,26.0,221.72,221.7,3.33106158]
[1758538118817,26.0,221.73,221.71,3.33295475]
[1758538118999,26.59,221.73,221.69,35.66]
[1758538119203,26.0,221.71,221.7,3.33296538]
[1758538119417,28.72248367,221.71,221.61,0.72]
[1758538119719,2.13248367,221.64,221.62,3.33611579]
[1758538120019,26.0,221.66,221.63,3.33611579]
[1758538120337,26.0,221.66,221.64,3.33611579]
[1758538120498,26.0,221.66,221.65,3.33611579]
[1758538121116,28.13248367,221.66,221.65,3.33611579]
[1758538121505,26.0,221.66,221.65,3.33611579]
[1758538121818,28.13248367,221.66,221.65,3.33611579]
[1758538122995,25.43418001,221.74,221.65,4.05611579]
[1758538123192,2.13248367,221.71,221.66,17.6517098]
[1758538123422,2.13248367,221.71,221.67,4.05611579]
[1758538123713,2.13248367,221.71,221.68,3.33611579]
[1758538123892,2.13248367,221.71,221.69,3.33611579]
[1758538124092,37.86473839,221.74,221.7,3.33611579]
[1758538124395,0.59,221.73,221.67,0.72]
[1758538124603,0.59,221.73,221.68,3.33493267]
[1758538124797,0.59,221.73,221.66,13.59559401]
[1758538124798,26.0,221.7,221.69,3.33493267]
[1758538125002,26.0,221.72,221.69,4.05493267]
[1758538125298,4.50998962,221.73,221.7,3.33493267]
[1758538125497,4.50998962,221.73,221.69,0.72]
[1758538125801,4.50998962,221.73,221.7,3.33492448]
[1758538126118,4.50998962,221.73,221.66,49.25559401]
[1758538126119,0.59,221.72,221.66,0.72]
[1758538126306,0.59,221.72,221.67,3.33533408]
[1758538126509,2.13248367,221.68,221.66,0.72]
[1758538126813,2.13248367,221.68,221.67,3.33695047]
[1758538127225,2.13248367,221.68,221.67,4.05695047]
[1758538127516,2.13248367,221.69,221.67,4.05695047]
[1758538127722,4.51043853,221.71,221.68,4.05695047]
[1758538127894,2.13248367,221.69,221.68,0.72]
[1758538128094,28.13248367,221.69,221.68,3.33679285]
[1758538128498,28.04443901,221.69,221.68,3.33708905]
[1758538128699,32.55524238,221.69,221.68,3.33708905]
[1758538129996,33.14524238,221.69,221.68,3.33708905]
[1758538130221,44.42225081,221.69,221.61,36.38]
[1758538130400,2.13248367,221.63,221.62,3.33937376]
[1758538130602,2.04527132,221.63,221.62,3.33937376]
[1758538130906,2.13248367,221.64,221.62,4.05937376]
[1758538131099,2.13248367,221.65,221.63,4.05937376]
[1758538131310,2.13248367,221.66,221.64,4.05937376]
[1758538131495,2.13248367,221.66,221.65,3.33937376]
[1758538131700,2.13248367,221.67,221.65,4.05937376]
[1758538131909,4.51118388,221.68,221.66,3.33937376]
[1758538132114,30.51118388,221.68,221.67,3.33937376]
[1758538133203,32.64366755,221.68,221.67,3.33937376]
[1758538137812,28.13248367,221.68,221.67,3.33937376]
[1758538137997,26.0,221.68,221.67,3.33937376]
[1758538138334,26.0,221.68,221.67,4.03937376]
[1758538139725,4.51030395,221.72,221.67,4.03937376]
[1758538139932,2.13248367,221.72,221.68,4.03937376]
[1758538140107,2.13248367,221.72,221.69,4.03937376]
[1758538140422,28.13248367,221.73,221.7,4.03937376]
[1758538140621,28.13248367,221.73,221.71,3.33937376]
[1758538140826,28.13248367,221.73,221.72,3.33937376]
[1758538141028,32.64247329,221.73,221.72,3.33937376]
[1758538142201,28.13248367,221.73,221.72,3.33937376]
[1758538142624,6.64227929,221.74,221.72,4.03937376]
[1758538142845,6.64227929,221.74,221.72,0.7]
[1758538143023,6.64227929,221.74,221.73,0.7]
[1758538143326,26.0,221.74,221.73,4.04408861]
[1758538143506,28.13248367,221.74,221.73,4.04408861]
[1758538143932,32.6422699,221.74,221.73,4.04408861]
[1758538144136,0.1,221.76,221.73,4.04408861]
[1758538144425,26.1,221.76,221.74,4.04408861]
[1758538144625,0.1,221.76,221.75,4.04354569]
[1758538144806,26.1,221.76,221.75,4.04354569]
[1758538145130,0.1,221.76,221.75,4.04354569]
[1758538148511,0.1,221.76,221.75,3.95633334]
[1758538149115,0.1,221.76,221.75,84.55633334]
[1758538149939,0.1,221.76,221.75,3.95633334]